[Event "Late-Titled-Tuesday-Blitz-January-23-2024"]
[Site "Chess.com"]
[Date "2024.01.23"]
[Round "7"]
[White "NtcPou"]
[Black "TV27"]
[Result "0-1"]
[WhiteElo "2007"]
[BlackElo "2181"]
[TimeControl "180+1"]
[EndTime "15:15:00 PST"]
[Termination "TV27 won by checkmate"]

1. e4 {[%clk 0:03:00.9]} 1... c5 {[%clk 0:02:59.6]} 2. Nf3 {[%clk 0:02:59.5]}
2... Nc6 {[%clk 0:02:58.1]} 3. Bb5 {[%clk 0:02:58.8]} 3... Nf6 {[%clk
0:02:57.3]} 4. Nc3 {[%clk 0:02:58.3]} 4... Nd4 {[%clk 0:02:57.1]} 5. O-O {[%clk
0:02:16.3]} 5... a6 {[%clk 0:02:55.4]} 6. Be2 {[%clk 0:02:12.8]} 6... Nxf3+
{[%clk 0:02:40.3]} 7. Bxf3 {[%clk 0:02:11.6]} 7... e5 {[%clk 0:02:40.4]} 8. d3
{[%clk 0:02:09.3]} 8... d6 {[%clk 0:02:38.3]} 9. Bg5 {[%clk 0:02:08.3]} 9... Be7
{[%clk 0:02:38]} 10. Ne2 {[%clk 0:02:00.5]} 10... Be6 {[%clk 0:02:28.1]} 11. c3
{[%clk 0:01:59.6]} 11... h6 {[%clk 0:02:25.6]} 12. Bxf6 {[%clk 0:01:58]} 12...
Bxf6 {[%clk 0:02:25.4]} 13. d4 {[%clk 0:01:57.5]} 13... O-O {[%clk 0:02:20.8]}
14. a4 {[%clk 0:01:38]} 14... Rb8 {[%clk 0:02:18.9]} 15. a5 {[%clk 0:01:37.8]}
15... g5 {[%clk 0:02:14.1]} 16. h3 {[%clk 0:01:36.2]} 16... Bg7 {[%clk
0:02:10.1]} 17. g4 {[%clk 0:01:14.4]} 17... h5 {[%clk 0:02:04.7]} 18. Ng3 {[%clk
0:01:09.7]} 18... h4 {[%clk 0:02:03.4]} 19. Nf5 {[%clk 0:01:09.5]} 19... Bxf5
{[%clk 0:02:03.1]} 20. gxf5 {[%clk 0:01:06.6]} 20... exd4 {[%clk 0:01:58.1]} 21.
cxd4 {[%clk 0:01:03.5]} 21... Bxd4 {[%clk 0:01:57.2]} 22. Bh5 {[%clk 0:01:02.4]}
22... Qf6 {[%clk 0:01:47]} 23. Kh1 {[%clk 0:00:57.9]} 23... Kh8 {[%clk
0:01:34.2]} 24. Qb3 {[%clk 0:00:41.5]} 24... Bxb2 {[%clk 0:01:30.9]} 25. Rab1
{[%clk 0:00:40.8]} 25... Bd4 {[%clk 0:01:29.8]} 26. Qd5 {[%clk 0:00:40.7]} 26...
Kg7 {[%clk 0:01:00.9]} 27. Rxb7 {[%clk 0:00:38.2]} 27... Rxb7 {[%clk 0:00:50.2]}
28. Qxb7 {[%clk 0:00:38.1]} 28... Qe5 {[%clk 0:00:50.3]} 29. f4 {[%clk
0:00:27.3]} 29... gxf4 {[%clk 0:00:48.6]} 30. Bf3 {[%clk 0:00:22.2]} 30... Kh8
{[%clk 0:00:33]} 31. Qxa6 {[%clk 0:00:21.9]} 31... Qg7 {[%clk 0:00:32.5]} 32.
Qxd6 {[%clk 0:00:17.8]} 32... Qg3 {[%clk 0:00:28]} 33. Qh6+ {[%clk 0:00:16.9]}
33... Kg8 {[%clk 0:00:27.8]} 34. Bg2 {[%clk 0:00:07.1]} 34... Be3 {[%clk
0:00:23.2]} 35. Rf3 {[%clk 0:00:07]} 35... Qe1+ {[%clk 0:00:22.4]} 36. Kh2
{[%clk 0:00:07.5]} 36... Bg1+ {[%clk 0:00:13.4]} 37. Kh1 {[%clk 0:00:06.7]}
37... Be3+ {[%clk 0:00:13.3]} 38. Kh2 {[%clk 0:00:06.9]} 38... Qg1# {[%clk
0:00:13.2]} 0-1

[Event "Late-Titled-Tuesday-Blitz-January-23-2024"]
[Site "Chess.com"]
[Date "2024.01.23"]
[Round "7"]
[White "Lennis93"]
[Black "Pawngobblerx2000"]
[Result "0-1"]
[WhiteElo "2704"]
[BlackElo "2583"]
[TimeControl "180+1"]
[EndTime "15:15:01 PST"]
[Termination "Pawngobblerx2000 won by checkmate"]

1. d4 {[%clk 0:03:00.9]} 1... d5 {[%clk 0:02:57.7]} 2. c4 {[%clk 0:03:00.6]}
2... c6 {[%clk 0:02:49.9]} 3. Nf3 {[%clk 0:03:00.5]} 3... Nf6 {[%clk 0:02:50.1]}
4. g3 {[%clk 0:03:00.5]} 4... dxc4 {[%clk 0:02:49.3]} 5. Bg2 {[%clk 0:03:00.4]}
5... b5 {[%clk 0:02:49.3]} 6. O-O {[%clk 0:03:00.7]} 6... Bb7 {[%clk 0:02:49]}
7. a4 {[%clk 0:02:56.6]} 7... e6 {[%clk 0:02:48.7]} 8. Ne5 {[%clk 0:02:56.4]}
8... a6 {[%clk 0:02:45.9]} 9. Nc3 {[%clk 0:02:55.6]} 9... Qc8 {[%clk 0:02:45]}
10. b3 {[%clk 0:02:52.4]} 10... b4 {[%clk 0:02:41.5]} 11. Ne4 {[%clk 0:02:43.3]}
11... Nxe4 {[%clk 0:02:39.1]} 12. Bxe4 {[%clk 0:02:43.1]} 12... c3 {[%clk
0:02:39.7]} 13. a5 {[%clk 0:02:38.1]} 13... Nd7 {[%clk 0:02:35.6]} 14. Nc4
{[%clk 0:02:29.3]} 14... Be7 {[%clk 0:02:30.2]} 15. Qd3 {[%clk 0:02:28.4]} 15...
f5 {[%clk 0:02:23]} 16. Bg2 {[%clk 0:02:25.9]} 16... O-O {[%clk 0:02:22.1]} 17.
Bf4 {[%clk 0:02:23.1]} 17... c5 {[%clk 0:02:11]} 18. Nd6 {[%clk 0:02:23]} 18...
Bxd6 {[%clk 0:02:08]} 19. Bxb7 {[%clk 0:02:23]} 19... Qxb7 {[%clk 0:02:06.4]}
20. Bxd6 {[%clk 0:02:23.6]} 20... Rfd8 {[%clk 0:02:04.5]} 21. Qc4 {[%clk
0:02:17.3]} 21... Qd5 {[%clk 0:02:00.9]} 22. Qxd5 {[%clk 0:02:13.8]} 22... exd5
{[%clk 0:02:01.5]} 23. dxc5 {[%clk 0:02:14.5]} 23... Rac8 {[%clk 0:01:56.5]} 24.
Ra4 {[%clk 0:01:56.4]} 24... Nxc5 {[%clk 0:01:43.8]} 25. Bxc5 {[%clk 0:01:56.1]}
25... Rxc5 {[%clk 0:01:44.7]} 26. Rxb4 {[%clk 0:01:56.6]} 26... d4 {[%clk
0:01:40.4]} 27. Rd1 {[%clk 0:01:48.9]} 27... c2 {[%clk 0:01:40.3]} 28. Rc1
{[%clk 0:01:48.7]} 28... d3 {[%clk 0:01:36.8]} 29. exd3 {[%clk 0:01:16.1]} 29...
Rxd3 {[%clk 0:01:36.3]} 30. Rb8+ {[%clk 0:01:14.4]} 30... Kf7 {[%clk 0:01:36.5]}
31. Kg2 {[%clk 0:01:14]} 31... Rd1 {[%clk 0:01:35.5]} 32. Rb7+ {[%clk
0:01:14.4]} 32... Ke6 {[%clk 0:01:33.1]} 33. Rb6+ {[%clk 0:01:14.5]} 33... Kd5
{[%clk 0:01:30.9]} 34. Rxc2 {[%clk 0:01:13.9]} 34... Rxc2 {[%clk 0:01:29.1]} 35.
Rxa6 {[%clk 0:01:14.5]} 35... Rdd2 {[%clk 0:01:27.2]} 36. Kf3 {[%clk 0:01:08.3]}
36... Rxf2+ {[%clk 0:01:25.1]} 37. Ke3 {[%clk 0:01:08.7]} 37... Rxh2 {[%clk
0:01:19.3]} 38. Rb6 {[%clk 0:01:08.4]} 38... Rc3+ {[%clk 0:01:14.7]} 39. Kf4
{[%clk 0:01:08.2]} 39... Rf2+ {[%clk 0:01:14.8]} 40. Kg5 {[%clk 0:01:07.4]}
40... Rxg3+ {[%clk 0:01:15.1]} 41. Kh4 {[%clk 0:01:07.7]} 41... Rg4+ {[%clk
0:01:15.3]} 42. Kh3 {[%clk 0:01:08.2]} 42... Rf1 {[%clk 0:01:11.9]} 43. Kh2
{[%clk 0:01:07.7]} 43... Rc1 {[%clk 0:01:06.9]} 44. a6 {[%clk 0:01:07.1]} 44...
Rc6 {[%clk 0:01:06.4]} 45. a7 {[%clk 0:01:04.1]} 45... Rc2+ {[%clk 0:00:58.5]}
46. Kh3 {[%clk 0:00:58.8]} 46... Ra2 {[%clk 0:00:58.4]} 47. Rb7 {[%clk
0:00:57.2]} 47... Kc6 {[%clk 0:00:56.4]} 48. Rf7 {[%clk 0:00:52.8]} 48... Ra3
{[%clk 0:00:51.7]} 49. Rxf5 {[%clk 0:00:49.5]} 49... Rg1 {[%clk 0:00:48.5]} 50.
Rf7 {[%clk 0:00:38.4]} 50... Kb6 {[%clk 0:00:40.9]} 51. Kh2 {[%clk 0:00:35.3]}
51... Rg5 {[%clk 0:00:38.9]} 52. a8=Q {[%clk 0:00:22.6]} 52... Rxa8 {[%clk
0:00:38.3]} 53. Rf2 {[%clk 0:00:23]} 53... Re8 {[%clk 0:00:37.1]} 54. b4 {[%clk
0:00:22.1]} 54... Re6 {[%clk 0:00:36.7]} 55. Rf6 {[%clk 0:00:12.4]} 55... Rxf6
{[%clk 0:00:36]} 56. b5 {[%clk 0:00:11.5]} 56... Rh6# {[%clk 0:00:36.9]} 0-1

[Event "Late-Titled-Tuesday-Blitz-January-23-2024"]
[Site "Chess.com"]
[Date "2024.01.23"]
[Round "7"]
[White "sansanathalia"]
[Black "ChEsper99"]
[Result "1-0"]
[WhiteElo "2380"]
[BlackElo "2105"]
[TimeControl "180+1"]
[EndTime "15:15:01 PST"]
[Termination "sansanathalia won by resignation"]

1. e4 {[%clk 0:03:00.1]} 1... c6 {[%clk 0:02:50.8]} 2. d4 {[%clk 0:02:58.5]}
2... d5 {[%clk 0:02:50.7]} 3. exd5 {[%clk 0:02:58.2]} 3... cxd5 {[%clk
0:02:49.7]} 4. c4 {[%clk 0:02:58.5]} 4... Nf6 {[%clk 0:02:49.6]} 5. Nc3 {[%clk
0:02:58.5]} 5... e6 {[%clk 0:02:47.5]} 6. Nf3 {[%clk 0:02:56]} 6... Bb4 {[%clk
0:02:43.8]} 7. Be2 {[%clk 0:02:53.1]} 7... O-O {[%clk 0:02:42.5]} 8. O-O {[%clk
0:02:50.5]} 8... b6 {[%clk 0:02:42.5]} 9. a3 {[%clk 0:02:46]} 9... Be7 {[%clk
0:02:36.3]} 10. Ne5 {[%clk 0:02:41.3]} 10... Bb7 {[%clk 0:02:32.3]} 11. Bf3
{[%clk 0:02:38]} 11... Qc8 {[%clk 0:02:21]} 12. cxd5 {[%clk 0:02:31.1]} 12...
Nxd5 {[%clk 0:02:17.9]} 13. Nxd5 {[%clk 0:02:20]} 13... Bxd5 {[%clk 0:02:18.8]}
14. Bxd5 {[%clk 0:02:18.6]} 14... exd5 {[%clk 0:02:11.5]} 15. Be3 {[%clk
0:02:12.9]} 15... Nd7 {[%clk 0:02:04.6]} 16. Rc1 {[%clk 0:01:55]} 16... Qb7
{[%clk 0:01:54.9]} 17. Qf3 {[%clk 0:01:30]} 17... Nxe5 {[%clk 0:01:40.5]} 18.
dxe5 {[%clk 0:01:28.1]} 18... Rac8 {[%clk 0:01:41]} 19. Rcd1 {[%clk 0:01:24.9]}
19... Rfd8 {[%clk 0:01:38.4]} 20. Qg4 {[%clk 0:01:22.3]} 20... Qd7 {[%clk
0:01:36.1]} 21. Qg3 {[%clk 0:01:17.4]} 21... Bc5 {[%clk 0:01:30.3]} 22. Bd4
{[%clk 0:01:01.9]} 22... Bxd4 {[%clk 0:00:53.4]} 23. Rxd4 {[%clk 0:00:58.1]}
23... Rc4 {[%clk 0:00:53.8]} 24. Rd3 {[%clk 0:00:50.6]} 24... Qf5 {[%clk
0:00:51.8]} 25. h3 {[%clk 0:00:47.3]} 25... h5 {[%clk 0:00:26.2]} 26. Rf3 {[%clk
0:00:37.8]} 26... Qe4 {[%clk 0:00:18.6]} 27. Qg5 {[%clk 0:00:36.1]} 27... Re8
{[%clk 0:00:16.3]} 28. Qxh5 {[%clk 0:00:30.5]} 28... Re7 {[%clk 0:00:13.6]} 29.
Rd1 {[%clk 0:00:13.7]} 29... Qxe5 {[%clk 0:00:09]} 30. Rf5 {[%clk 0:00:10.5]}
30... Qe2 {[%clk 0:00:05]} 31. Rfxd5 {[%clk 0:00:04.2]} 31... Qxh5 {[%clk
0:00:04.4]} 32. Rxh5 {[%clk 0:00:04.7]} 32... Re2 {[%clk 0:00:04.2]} 33. Rd8+
{[%clk 0:00:04.2]} 1-0

[Event "Late-Titled-Tuesday-Blitz-January-23-2024"]
[Site "Chess.com"]
[Date "2024.01.23"]
[Round "7"]
[White "messiboca"]
[Black "Siemba"]
[Result "1-0"]
[WhiteElo "2778"]
[BlackElo "2570"]
[TimeControl "180+1"]
[EndTime "15:15:03 PST"]
[Termination "messiboca won on time"]

1. d4 {[%clk 0:03:00.9]} 1... Nf6 {[%clk 0:02:59.7]} 2. c4 {[%clk 0:03:00.5]}
2... g6 {[%clk 0:03:00]} 3. Nc3 {[%clk 0:03:00.6]} 3... Bg7 {[%clk 0:03:00.6]}
4. Nf3 {[%clk 0:03:00.8]} 4... d6 {[%clk 0:03:01.2]} 5. Bg5 {[%clk 0:03:00.8]}
5... O-O {[%clk 0:03:01.7]} 6. e3 {[%clk 0:03:00.7]} 6... h6 {[%clk 0:02:59.9]}
7. Bh4 {[%clk 0:03:00.6]} 7... b6 {[%clk 0:02:52.6]} 8. Be2 {[%clk 0:02:57.8]}
8... Bb7 {[%clk 0:02:53.2]} 9. Qc2 {[%clk 0:02:58.2]} 9... Nbd7 {[%clk
0:02:53.3]} 10. O-O {[%clk 0:02:57.5]} 10... g5 {[%clk 0:02:47.4]} 11. Bg3
{[%clk 0:02:56.8]} 11... e6 {[%clk 0:02:35]} 12. Nd2 {[%clk 0:02:50]} 12... a6
{[%clk 0:02:22.6]} 13. f4 {[%clk 0:02:49.2]} 13... Nh7 {[%clk 0:02:19.7]} 14. f5
{[%clk 0:02:46.5]} 14... exf5 {[%clk 0:02:16.9]} 15. Rxf5 {[%clk 0:02:39]} 15...
Qe7 {[%clk 0:02:16.6]} 16. Bf2 {[%clk 0:02:29.2]} 16... Rae8 {[%clk 0:02:14.3]}
17. Nd5 {[%clk 0:02:23.2]} 17... Qd8 {[%clk 0:02:05.5]} 18. Bd3 {[%clk
0:02:20.2]} 18... Ndf6 {[%clk 0:02:03.4]} 19. Rf1 {[%clk 0:02:03.4]} 19... Nxd5
{[%clk 0:01:54.2]} 20. cxd5 {[%clk 0:02:01.7]} 20... Nf6 {[%clk 0:01:52.7]} 21.
h4 {[%clk 0:01:13.7]} 21... Nxd5 {[%clk 0:01:44]} 22. hxg5 {[%clk 0:01:13.5]}
22... hxg5 {[%clk 0:01:44.2]} 23. Be4 {[%clk 0:01:05.2]} 23... Nb4 {[%clk
0:01:39.2]} 24. Qb1 {[%clk 0:01:02.9]} 24... d5 {[%clk 0:01:31.6]} 25. Bf3
{[%clk 0:00:57.4]} 25... Bc8 {[%clk 0:01:31.3]} 26. a3 {[%clk 0:00:57.7]} 26...
Bxf5 {[%clk 0:01:26.2]} 27. Qxf5 {[%clk 0:00:58.6]} 27... Nc6 {[%clk 0:01:26.4]}
28. Bd1 {[%clk 0:00:51.7]} 28... Qf6 {[%clk 0:01:13.8]} 29. Qxd5 {[%clk
0:00:51.1]} 29... Rd8 {[%clk 0:01:00.4]} 30. Qe4 {[%clk 0:00:47.3]} 30... Rfe8
{[%clk 0:00:58.3]} 31. Qg4 {[%clk 0:00:46.9]} 31... Qg6 {[%clk 0:00:53.1]} 32.
Bb3 {[%clk 0:00:46.3]} 32... Re7 {[%clk 0:00:43.4]} 33. Nf3 {[%clk 0:00:39.4]}
33... Bf6 {[%clk 0:00:30.3]} 34. Ba2 {[%clk 0:00:31.7]} 34... Qe4 {[%clk
0:00:13.8]} 35. Qg3 {[%clk 0:00:31.2]} 35... Kg7 {[%clk 0:00:12.7]} 36. Bb1
{[%clk 0:00:30.8]} 36... Qe6 {[%clk 0:00:09.8]} 37. Nxg5 {[%clk 0:00:30.9]}
37... Bxg5 {[%clk 0:00:09.1]} 38. Qxg5+ {[%clk 0:00:31.3]} 38... Kf8 {[%clk
0:00:09.7]} 39. Rc1 {[%clk 0:00:19.2]} 39... Rd5 {[%clk 0:00:07.4]} 40. Qh4
{[%clk 0:00:18.1]} 40... Ke8 {[%clk 0:00:03.2]} 41. Ba2 {[%clk 0:00:18]} 41...
Kd7 {[%clk 0:00:01.9]} 42. Qf4 {[%clk 0:00:16.9]} 1-0

[Event "Late-Titled-Tuesday-Blitz-January-23-2024"]
[Site "Chess.com"]
[Date "2024.01.23"]
[Round "7"]
[White "Sanyura"]
[Black "IngOscarArdila"]
[Result "1-0"]
[WhiteElo "2621"]
[BlackElo "2366"]
[TimeControl "180+1"]
[EndTime "15:15:03 PST"]
[Termination "Sanyura won by checkmate"]

1. Nf3 {[%clk 0:02:26.9]} 1... Nf6 {[%clk 0:02:59]} 2. g3 {[%clk 0:02:27.8]}
2... g6 {[%clk 0:02:59.3]} 3. Bg2 {[%clk 0:02:26.5]} 3... Bg7 {[%clk 0:03:00.2]}
4. O-O {[%clk 0:02:25.7]} 4... O-O {[%clk 0:03:01.1]} 5. d3 {[%clk 0:02:25.9]}
5... d6 {[%clk 0:03:01.6]} 6. Nbd2 {[%clk 0:02:25.7]} 6... Nbd7 {[%clk
0:03:02.5]} 7. e4 {[%clk 0:02:26.5]} 7... e5 {[%clk 0:03:03]} 8. Nh4 {[%clk
0:02:26.9]} 8... Nh5 {[%clk 0:02:58.9]} 9. Nf5 {[%clk 0:02:26.2]} 9... Ndf6
{[%clk 0:02:50.2]} 10. Nxg7 {[%clk 0:02:22.4]} 10... Nxg7 {[%clk 0:02:51.1]} 11.
f4 {[%clk 0:02:21.2]} 11... exf4 {[%clk 0:02:50.4]} 12. gxf4 {[%clk 0:02:22.1]}
12... Nfh5 {[%clk 0:02:50.6]} 13. f5 {[%clk 0:02:21.1]} 13... gxf5 {[%clk
0:02:37.1]} 14. exf5 {[%clk 0:02:17.6]} 14... Qf6 {[%clk 0:02:28.7]} 15. Ne4
{[%clk 0:02:15.2]} 15... Qd4+ {[%clk 0:02:27.9]} 16. Kh1 {[%clk 0:02:15.4]}
16... f6 {[%clk 0:01:42.8]} 17. Bh6 {[%clk 0:02:07.9]} 17... d5 {[%clk
0:01:41.3]} 18. c3 {[%clk 0:01:58.3]} 18... Qe5 {[%clk 0:01:40.9]} 19. d4 {[%clk
0:01:57.3]} 19... Qe7 {[%clk 0:01:40.7]} 20. Ng3 {[%clk 0:01:42.1]} 20... Nxg3+
{[%clk 0:01:40.1]} 21. hxg3 {[%clk 0:01:42.9]} 21... c6 {[%clk 0:01:36.5]} 22.
Qg4 {[%clk 0:01:26.7]} 22... Kh8 {[%clk 0:01:33.3]} 23. Rae1 {[%clk 0:01:26.2]}
23... Qf7 {[%clk 0:01:33.7]} 24. Rf4 {[%clk 0:01:21.4]} 24... Bd7 {[%clk
0:01:33.5]} 25. Qh3 {[%clk 0:01:04.2]} 25... Rae8 {[%clk 0:01:32.7]} 26. Ref1
{[%clk 0:01:04.5]} 26... Rg8 {[%clk 0:01:30.4]} 27. Rh4 {[%clk 0:01:03.5]} 27...
Nxf5 {[%clk 0:01:25.9]} 28. Rxf5 {[%clk 0:01:01.3]} 28... Qg6 {[%clk 0:01:12.1]}
29. Rhf4 {[%clk 0:00:10.5]} 29... Re1+ {[%clk 0:01:03.5]} 30. Kh2 {[%clk
0:00:10.3]} 30... Bxf5 {[%clk 0:01:02.7]} 31. Rxf5 {[%clk 0:00:10.4]} 31... Rge8
{[%clk 0:01:00.2]} 32. Bf4 {[%clk 0:00:09.8]} 32... R1e2 {[%clk 0:00:53.6]} 33.
Rh5 {[%clk 0:00:08.9]} 33... Rxb2 {[%clk 0:00:49.1]} 34. Rh6 {[%clk 0:00:07.3]}
34... Qg7 {[%clk 0:00:46.6]} 35. Qf5 {[%clk 0:00:05.7]} 35... Kg8 {[%clk
0:00:42]} 36. Rxf6 {[%clk 0:00:04.6]} 36... Rbe2 {[%clk 0:00:30.8]} 37. Be5
{[%clk 0:00:03.8]} 37... h6 {[%clk 0:00:18.5]} 38. Re6 {[%clk 0:00:03.8]} 38...
Qf7 {[%clk 0:00:13.6]} 39. Qg4+ {[%clk 0:00:03.8]} 39... Kh7 {[%clk 0:00:12.1]}
40. Rxe8 {[%clk 0:00:04.3]} 40... Rxg2+ {[%clk 0:00:11.1]} 41. Kxg2 {[%clk
0:00:04]} 41... h5 {[%clk 0:00:11.6]} 42. Rh8# {[%clk 0:00:03.2]} 1-0

[Event "Late-Titled-Tuesday-Blitz-January-23-2024"]
[Site "Chess.com"]
[Date "2024.01.23"]
[Round "7"]
[White "ChessFighter_2011"]
[Black "Sanan_Sjugirov"]
[Result "1-0"]
[WhiteElo "2942"]
[BlackElo "3015"]
[TimeControl "180+1"]
[EndTime "15:15:04 PST"]
[Termination "ChessFighter_2011 won on time"]

1. e4 {[%clk 0:03:00.9]} 1... c5 {[%clk 0:02:59.9]} 2. Nf3 {[%clk 0:03:00.9]}
2... d6 {[%clk 0:03:00.5]} 3. Bb5+ {[%clk 0:02:59]} 3... Bd7 {[%clk 0:03:00.5]}
4. c4 {[%clk 0:02:59.4]} 4... Nf6 {[%clk 0:02:59.8]} 5. Nc3 {[%clk 0:02:58.7]}
5... a6 {[%clk 0:02:58.2]} 6. Bxd7+ {[%clk 0:02:52.8]} 6... Qxd7 {[%clk
0:02:59.1]} 7. O-O {[%clk 0:02:51.6]} 7... e6 {[%clk 0:02:59]} 8. d4 {[%clk
0:02:51.9]} 8... cxd4 {[%clk 0:02:59.9]} 9. Nxd4 {[%clk 0:02:52.2]} 9... Nc6
{[%clk 0:02:59.9]} 10. b3 {[%clk 0:02:52.6]} 10... Be7 {[%clk 0:02:59.9]} 11.
Bb2 {[%clk 0:02:52.7]} 11... O-O {[%clk 0:03:00.1]} 12. Qd2 {[%clk 0:02:53.2]}
12... Nxd4 {[%clk 0:02:56.8]} 13. Qxd4 {[%clk 0:02:53.1]} 13... Qc7 {[%clk
0:02:57.1]} 14. Rad1 {[%clk 0:02:52.7]} 14... Rac8 {[%clk 0:02:56.6]} 15. Kh1
{[%clk 0:02:49.8]} 15... Rfd8 {[%clk 0:02:55.6]} 16. f4 {[%clk 0:02:47.9]} 16...
h6 {[%clk 0:02:44.9]} 17. Qd3 {[%clk 0:02:45.5]} 17... Qa5 {[%clk 0:02:33.7]}
18. Qf3 {[%clk 0:02:44.6]} 18... Qh5 {[%clk 0:02:21.2]} 19. Qxh5 {[%clk
0:02:22.5]} 19... Nxh5 {[%clk 0:02:22.1]} 20. e5 {[%clk 0:02:22.9]} 20... dxe5
{[%clk 0:02:13.9]} 21. fxe5 {[%clk 0:02:22.9]} 21... g5 {[%clk 0:01:38.3]} 22.
Ne4 {[%clk 0:02:18]} 22... Nf4 {[%clk 0:01:32.5]} 23. Nd6 {[%clk 0:02:13.4]}
23... Rc7 {[%clk 0:01:24.8]} 24. g3 {[%clk 0:02:12.6]} 24... Ng6 {[%clk
0:01:25]} 25. Bc3 {[%clk 0:01:43.1]} 25... b6 {[%clk 0:01:14.3]} 26. Bd4 {[%clk
0:01:36.1]} 26... Rcd7 {[%clk 0:00:30]} 27. Bxb6 {[%clk 0:01:19.4]} 27... Rb8
{[%clk 0:00:30]} 28. c5 {[%clk 0:00:51.4]} 28... Nxe5 {[%clk 0:00:28.1]} 29.
Nxf7 {[%clk 0:00:33.2]} 29... Rxd1 {[%clk 0:00:21.6]} 30. Nxh6+ {[%clk
0:00:33.1]} 30... Kg7 {[%clk 0:00:20.3]} 31. Rxd1 {[%clk 0:00:34]} 31... Kxh6
{[%clk 0:00:17.9]} 32. Bc7 {[%clk 0:00:34.5]} 32... Rc8 {[%clk 0:00:16.6]} 33.
Bxe5 {[%clk 0:00:34.6]} 33... Rxc5 {[%clk 0:00:17.4]} 34. Bd6 {[%clk 0:00:29.5]}
34... Bxd6 {[%clk 0:00:13.7]} 35. Rxd6 {[%clk 0:00:30.4]} 35... Rc1+ {[%clk
0:00:12.2]} 36. Kg2 {[%clk 0:00:30.8]} 36... Rc2+ {[%clk 0:00:13.1]} 37. Kh3
{[%clk 0:00:29.4]} 37... Rxa2 {[%clk 0:00:07]} 38. Rxe6+ {[%clk 0:00:29.4]}
38... Kg7 {[%clk 0:00:06.8]} 39. Kg4 {[%clk 0:00:29.9]} 39... a5 {[%clk
0:00:04.8]} 40. h3 {[%clk 0:00:29.1]} 40... Ra3 {[%clk 0:00:03.4]} 41. Rb6
{[%clk 0:00:28.4]} 41... Kf7 {[%clk 0:00:02.4]} 42. Rb5 {[%clk 0:00:27]} 42...
Kf6 {[%clk 0:00:01.6]} 43. Rf5+ {[%clk 0:00:26.9]} 43... Ke6 {[%clk 0:00:02]}
44. Rxg5 {[%clk 0:00:25.5]} 44... a4 {[%clk 0:00:01.4]} 45. Ra5 {[%clk
0:00:22.3]} 1-0

[Event "Late-Titled-Tuesday-Blitz-January-23-2024"]
[Site "Chess.com"]
[Date "2024.01.23"]
[Round "7"]
[White "djano"]
[Black "BilodeauA"]
[Result "1/2-1/2"]
[WhiteElo "2715"]
[BlackElo "2940"]
[TimeControl "180+1"]
[EndTime "15:15:04 PST"]
[Termination "Game drawn by repetition"]

1. e4 {[%clk 0:03:00.9]} 1... e5 {[%clk 0:02:59.7]} 2. Nf3 {[%clk 0:03:00.8]}
2... Nc6 {[%clk 0:03:00.2]} 3. Bc4 {[%clk 0:03:01.3]} 3... Bc5 {[%clk
0:02:59.8]} 4. c3 {[%clk 0:02:59]} 4... Nf6 {[%clk 0:03:00.1]} 5. d4 {[%clk
0:02:59]} 5... exd4 {[%clk 0:02:59.5]} 6. e5 {[%clk 0:02:59.4]} 6... d5 {[%clk
0:02:57.3]} 7. Be2 {[%clk 0:02:59]} 7... Ne4 {[%clk 0:02:55.7]} 8. cxd4 {[%clk
0:02:58.7]} 8... Bb6 {[%clk 0:02:56.2]} 9. Nc3 {[%clk 0:02:54.9]} 9... O-O
{[%clk 0:02:54.2]} 10. O-O {[%clk 0:02:51.2]} 10... Ne7 {[%clk 0:02:46.8]} 11.
h3 {[%clk 0:02:34.8]} 11... c6 {[%clk 0:02:46.1]} 12. Bf4 {[%clk 0:02:23.8]}
12... Bf5 {[%clk 0:02:42.6]} 13. Rc1 {[%clk 0:02:22.4]} 13... Ng6 {[%clk
0:02:36.6]} 14. Bh2 {[%clk 0:02:19.7]} 14... f6 {[%clk 0:02:32]} 15. exf6 {[%clk
0:02:18.5]} 15... Qxf6 {[%clk 0:02:32.9]} 16. Na4 {[%clk 0:02:10.2]} 16... Be6
{[%clk 0:01:55]} 17. Nxb6 {[%clk 0:02:09.1]} 17... axb6 {[%clk 0:01:55.7]} 18.
a3 {[%clk 0:02:07.2]} 18... Nf4 {[%clk 0:01:55.8]} 19. Bxf4 {[%clk 0:01:54.7]}
19... Qxf4 {[%clk 0:01:55.7]} 20. Qd3 {[%clk 0:01:55.4]} 20... Bf5 {[%clk
0:01:35.9]} 21. Qe3 {[%clk 0:01:55.2]} 21... Qxe3 {[%clk 0:01:35.3]} 22. fxe3
{[%clk 0:01:56.1]} 22... Ng3 {[%clk 0:01:35.9]} 23. Rf2 {[%clk 0:01:44.1]} 23...
Nxe2+ {[%clk 0:01:35.7]} 24. Rxe2 {[%clk 0:01:45]} 24... Bxh3 {[%clk 0:01:36.3]}
25. Ne5 {[%clk 0:01:40.8]} 25... Bf5 {[%clk 0:01:36.4]} 26. Rf2 {[%clk
0:01:34.3]} 26... h5 {[%clk 0:01:28.1]} 27. Rcf1 {[%clk 0:01:28.7]} 27... g6
{[%clk 0:01:28.4]} 28. Kh2 {[%clk 0:01:25.4]} 28... b5 {[%clk 0:01:28.2]} 29.
Kg3 {[%clk 0:01:23.5]} 29... Kg7 {[%clk 0:01:28.4]} 30. Rf4 {[%clk 0:01:21]}
30... Rfe8 {[%clk 0:01:24.7]} 31. Rc1 {[%clk 0:01:15.8]} 31... Ra4 {[%clk
0:01:23.2]} 32. Rc3 {[%clk 0:01:07.4]} 32... Re7 {[%clk 0:01:18.8]} 33. Rb3
{[%clk 0:01:04]} 33... Kf6 {[%clk 0:01:12.9]} 34. Rc3 {[%clk 0:00:57.9]} 34...
b4 {[%clk 0:01:08.2]} 35. Rb3 {[%clk 0:00:54.3]} 35... bxa3 {[%clk 0:01:08]} 36.
bxa3 {[%clk 0:00:51.5]} 36... g5 {[%clk 0:00:41]} 37. Rf2 {[%clk 0:00:51.5]}
37... Ke6 {[%clk 0:00:39.5]} 38. Rfb2 {[%clk 0:00:48.9]} 38... Ra7 {[%clk
0:00:39.7]} 39. Rf2 {[%clk 0:00:36]} 39... h4+ {[%clk 0:00:39.7]} 40. Kh2 {[%clk
0:00:36.2]} 40... Re8 {[%clk 0:00:30.6]} 41. Nf3 {[%clk 0:00:36.1]} 41... Rg8
{[%clk 0:00:29.4]} 42. Ne5 {[%clk 0:00:36.2]} 42... Be4 {[%clk 0:00:29.9]} 43.
Kh3 {[%clk 0:00:31]} 43... Bf5+ {[%clk 0:00:28.5]} 44. Kh2 {[%clk 0:00:31.1]}
44... Rga8 {[%clk 0:00:29.1]} 45. Nf3 {[%clk 0:00:23.6]} 45... Kf6 {[%clk
0:00:22.4]} 46. Ne5 {[%clk 0:00:09.9]} 46... Ke6 {[%clk 0:00:22.3]} 47. Nf3
{[%clk 0:00:09.4]} 47... Rg8 {[%clk 0:00:23]} 48. Ne5 {[%clk 0:00:07.2]} 1/2-1/2